Cogmind - Beta 10.1 *** ADVENTURER MODE // 2020.10.20 @ 16:00:46 Player: darlorth Result: Destroyed by as-47371 with Assembled Blade Performance ------------- Evolutions (0) 0 Regions Visited (4) 800 Robots Destroyed (7) 35 Value Destroyed (124) 124 Prototype IDs (0) 0 Alien Tech Used (0) 0 Bonus (328) 328 TOTAL SCORE: 1287 Bonus ------- Follower Combat Kills 28 Aligned with FarCom 300 Cogmind --------- Core Integrity 0/250 Matter 300/300 Energy 100/100 System Corruption 1% Temperature Cool (0) Movement Core (50) Location -9/Mines Parts ------- > --- POWER (1) -------- (None) > --- PROPULSION (2) --- (None) > --- UTILITY (2) ------ (None) > --- WEAPON (2) ------- (None) > --- INVENTORY (4) ---- Medium Storage Unit Particle Gun Light Assault Rifle Peak State ------------ > --- POWER ------------ Ion Engine > --- PROPULSION ------- Aluminum Leg Aluminum Leg > --- UTILITY ---------- Small Storage Unit Improved Terrain Scanner > --- WEAPON ----------- EM Pulse Gun Assault Rifle > --- INVENTORY -------- (None) [Rating: 8] Favorites ----------- Power Ion Engine Engine Ion Engine Propulsion Aluminum Leg Leg Aluminum Leg Flight Unit Flight Unit Utility Visual Processing Unit Device Sensor Array Storage Small Storage Unit Processor Visual Processing Unit Weapon Mining Laser Energy Gun EM Pulse Gun Ballistic Gun Assault Rifle Special Weapon Mining Laser Build | -11 -10 -10 -10 -9 ------- Run | Scr Mat Min Exi Min Slots Evolved . | . . . . . Power . | . . . . . Propulsion . | . . . . . Utility . | . . . . . Weapon . | . . . . . Parts Attached 21 | 8 6 4 1 2 Power 3 | 1 . 1 1 . Engine 3 | 1 . 1 1 . Core . | . . . . . Reactor . | . . . . . Propulsion 7 | 2 2 2 . 1 Treads . | . . . . . Leg 4 | 2 2 . . . Wheel . | . . . . . Hover . | . . . . . Flight 3 | . . 2 . 1 Utility 5 | 3 2 . . . Device 2 | 1 1 . . . Storage 1 | 1 . . . . Processor 2 | 1 1 . . . Hackware . | . . . . . Protection . | . . . . . Artifact . | . . . . . Weapon 6 | 2 2 1 . 1 Energy Gun 1 | 1 . . . . Energy Cannon . | . . . . . Ballistic Gun 2 | 1 . 1 . . Ballistic Cannon . | . . . . . Launcher . | . . . . . Special Weapon 3 | . 2 . . 1 Impact Weapon . | . . . . . Slashing Weapon . | . . . . . Piercing Weapon . | . . . . . Special Melee Weapon . | . . . . . Unidentified Prototypes . | . . . . . Parts Lost 11 | . 3 . . 8 Power 2 | . 1 . . 1 Propulsion 3 | . . . . 3 Utility 2 | . . . . 2 Weapon 4 | . 2 . . 2 Highest Loss Streak 8 | . 3 . . 8 Average Slot Usage (%) 82 | . 73 92 100 85 Engine 7 | . 5 7 14 11 Leg 17 | . 28 12 . . Flight 10 | . . 15 28 25 Device 13 | . 14 14 14 11 Processor 14 | . 14 14 14 14 Energy Gun 2 | . 4 . . . Ballistic Gun 7 | . 5 7 14 8 Special Weapon 8 | . . 21 14 14 Naked Turns 1 | . . . . 1 Heaviest Build 14 | 14 10 6 6 6 Greatest Support 20 | 20 20 20 8 8 Greatest Overweight (x) 1 | . . . . 1 Average Overweight (x) . | . . . . . Largest Inventory Capacity 6 | 6 4 4 4 4 Average Capacity 4 | 5 4 4 4 4 Most Carried 4 | 2 4 4 4 4 Average Carried 2 | . 2 3 4 3 Final Capacity 4 | 4 4 4 4 4 Final Carried 4 | . 2 4 4 3 Class Distribution -------------------- 71% | Mutant 21% | Scavenger-Mutant 6% | Scavenger-Scout Dominant Class ---------------- Mutant | -10/Materials Scavenger-Mutant | -10/Mines Scavenger-Mutant | -10/Exiles Scavenger-Scout | -9/Mines Resources | -11 -10 -10 -10 -9 ----------- Run | Scr Mat Min Exi Min Matter Collected 436 | 291 75 60 . 10 Remotely . | . . . . . Salvage Created 290 | 169 121 . . . Parts 18 | 11 7 . . . Haulers Intercepted . | . . . . . Recyclers Shooed . | . . . . . Parts Field Recycled . | . . . . . Retrieved Matter . | . . . . . Parts Self-Destructed . | . . . . . Prevented . | . . . . . Kills | -11 -10 -10 -10 -9 ------- Run | Scr Mat Min Exi Min Combat Hostiles Destroyed 2 | . 2 . . . Melee 1 | . 1 . . . Guns 1 | . 1 . . . Classes Destroyed 4 | 2 2 . . . Tunneler 3 | 3 . . . . Recycler 1 | 1 . . . . Watcher 1 | . 1 . . . Grunt 2 | . 2 . . . Best Kill Streak 3 | 3 1 . . . Combat Bots Only 1 | . 1 . . . Max Kills in Single Turn 2 | 2 1 . . . Gunslinging . | . . . . . Exploded . | . . . . . Melee 1 | . 1 . . . Uniques/NPCs Destroyed . | . . . . . Combat | -11 -10 -10 -10 -9 -------- Run | Scr Mat Min Exi Min Damage Taken 892 | . 535 82 . 275 Core 262 | . 131 12 . 119 Absorbed by Shields . | . . . . . Core Remaining (%) 100 | 100 . . . . Volleys Fired 19 | 7 10 1 . 1 Largest 2 | 2 2 2 . 1 Hottest 200 | 60 60 200 . 100 Shots Fired 30 | 14 13 2 . 1 Gun 27 | 14 13 . . . Cannon . | . . . . . Launcher . | . . . . . Special 3 | . . 2 . 1 Kinetic 17 | 7 10 . . . Thermal 3 | . . 2 . 1 Explosive . | . . . . . Electromagnetic 10 | 7 3 . . . Robot Hit Streak 10 | 5 10 . . . Robot Miss Streak 1 | 1 1 . . . Penetration Max . | . . . . . Secondary Targets . | . . . . . Shots Hit Robots 20 | 9 11 . . . Core Hits 22 | 5 16 . . 1 Critical Hits . | . . . . . Critical Kills . | . . . . . Critical Parts Destroyed . | . . . . . Melee Attacks . | . . . . . Impact . | . . . . . Slashing . | . . . . . Piercing . | . . . . . Sneak Attacks . | . . . . . Combat Hostiles . | . . . . . Follow-up Attacks . | . . . . . Damage Inflicted 314 | 135 172 . . 7 Guns 277 | 135 142 . . . Cannons . | . . . . . Explosions . | . . . . . Melee . | . . . . . Ramming 37 | . 30 . . 7 Kinetic 142 | 37 105 . . . Thermal . | . . . . . Explosive . | . . . . . Electromagnetic 135 | 98 37 . . . Impact . | . . . . . Slashing . | . . . . . Piercing . | . . . . . Highest Corruption 1 | . 1 1 1 1 Average Corruption 1 | . 1 1 1 1 Corruption Purged . | . . . . . Effects 2 | . 1 . 1 . Data Loss (minor) 2 | . 1 . 1 . Overload Shots . | . . . . . Overflow Damage . | . . . . . Projectiles . | . . . . . Explosions . | . . . . . Melee . | . . . . . Knockbacks 1 | . 1 . . . Impact 1 | . 1 . . . Kinetic . | . . . . . Secondary . | . . . . . Self-Inflicted Damage 10 | . 7 . . 3 Shots . | . . . . . Rammed 23 | . 22 . . 1 Targets Rammed 34 | . 33 . . 1 Kicked 11 | . 11 . . . Crushed . | . . . . . Highest Temperature 28 | . 21 21 . 28 Average Temperature 13 | . 13 12 . 13 Received Heat Transfer 381 | . 321 . . 60 Siege Activations . | . . . . . Robots Corrupted . | . . . . . Combat Hostiles . | . . . . . Parts Fried 1 | 1 . . . . Impact Corruptions . | . . . . . Robots Melted . | . . . . . Combat Hostiles . | . . . . . Parts Melted . | . . . . . Heat Transferred . | . . . . . Parts Sabotaged . | . . . . . Parts Stolen . | . . . . . Parts Stripped . | . . . . . Power Chain Reactions . | . . . . . Missiles Intercepted . | . . . . . Alert | -11 -10 -10 -10 -9 ------- Run | Scr Mat Min Exi Min Peak Influence 119 | 20 119 95 . 30 Initial 11 | . 11 . . . Average 38 | 11 54 49 . 4 Maximum Alert Level . | . . . . . Low Security (%) 100 | 100 100 100 . 100 Level 1 . | . . . . . Level 2 . | . . . . . Level 3 . | . . . . . Level 4 . | . . . . . Level 5 . | . . . . . High Security . | . . . . . Max Security . | . . . . . Squads Dispatched . | . . . . . Investigation . | . . . . . Extermination . | . . . . . Reinforcement . | . . . . . Assault . | . . . . . Garrison . | . . . . . Intercept . | . . . . . Construction Impeded . | . . . . . Haulers Reinforced . | . . . . . Stealth | -11 -10 -10 -10 -9 --------- Run | Scr Mat Min Exi Min Distress Signals 1 | . 1 . . . Communications Jammed . | . . . . . Distress Signals . | . . . . . Times Spotted 32 | . 7 4 . 21 Peak Tracking Total 18 | . 3 3 . 18 Tactical Retreats 2 | . . 1 . 1 Traps | -11 -10 -10 -10 -9 ------- Run | Scr Mat Min Exi Min Traps Triggered 3 | . 3 . . . Indirectly . | . . . . . Trap Hack Attempts . | . . . . . Triggered . | . . . . . Disarmed . | . . . . . Reprogrammed . | . . . . . Reused . | . . . . . Traps Extracted . | . . . . . Installed . | . . . . . Triggered . | . . . . . Machines | -11 -10 -10 -10 -9 ---------- Run | Scr Mat Min Exi Min Machines Disabled . | . . . . . Max in Single Turn . | . . . . . Machines Sabotaged . | . . . . . Garrisons Compromised . | . . . . . Overloaded Fab Kills . | . . . . . Fab Network Shutdowns . | . . . . . Hacking | -11 -10 -10 -10 -9 --------- Run | Scr Mat Min Exi Min Machines Accessed 4 | . 4 . . . Terminals 3 | . 3 . . . Fabricators . | . . . . . Repair Stations . | . . . . . Recycling Units 1 | . 1 . . . Scanalyzers . | . . . . . Garrison Access . | . . . . . Total Hacks 6 | . 6 . . . Successful 5 | . 5 . . . Failed 1 | . 1 . . . Catastrophic . | . . . . . Database Lockouts . | . . . . . Manual 1 | . . . 1 . Terminals 4 | . 4 . . . Fabricators . | . . . . . Repair Stations . | . . . . . Recycling Units 2 | . 2 . . . Scanalyzers . | . . . . . Garrison Access . | . . . . . Terminal Hacks 4 | . 4 . . . Branch Access Points 1 | . 1 . . . Emergency Access Points 1 | . 1 . . . Locate Traps 1 | . 1 . . . Dispatch Records 1 | . 1 . . . Fabricator Hacks . | . . . . . Repair Station Hacks . | . . . . . Recycling Unit Hacks 1 | . 1 . . . Retrieve Components 1 | . 1 . . . Scanalyzer . | . . . . . Garrison Access Hacks . | . . . . . Unauthorized Hacks . | . . . . . Terminals . | . . . . . Fabricators . | . . . . . Repair Stations . | . . . . . Recycling Units . | . . . . . Scanalyzers . | . . . . . Garrison Access . | . . . . . Data Cores Recovered . | . . . . . Used . | . . . . . Hacking Detections 2 | . 2 . . . Full Trace Events . | . . . . . Feedback Events . | . . . . . Feedback Blocked . | . . . . . Robot Schematics Acquired . | . . . . . Robots Built . | . . . . . Matter . | . . . . . Time . | . . . . . Total Robot Build Rating . | . . . . . Part Schematics Acquired . | . . . . . Parts Built . | . . . . . Matter . | . . . . . Time . | . . . . . Total Part Build Rating . | . . . . . Parts Repaired . | . . . . . Time . | . . . . . Parts Recycled . | . . . . . Recycled Matter . | . . . . . Retrieved Matter . | . . . . . Retrieved Components . | . . . . . Parts Scanalyzed . | . . . . . Part Schematics Acquired . | . . . . . Parts Damaged . | . . . . . Bothacking | -11 -10 -10 -10 -9 ------------ Run | Scr Mat Min Exi Min Used RIF Installer . | . . . . . Robots Hacked . | . . . . . Non-combat . | . . . . . Combat . | . . . . . Robot Hacks Applied . | . . . . . Relay Couplers Released . | . . . . . Robots Rewired . | . . . . . Allies Hacked . | . . . . . Hacks Repelled . | . . . . . Allies | -11 -10 -10 -10 -9 -------- Run | Scr Mat Min Exi Min Total Allies 3 | . . 3 . . Largest Group 3 | . . 3 . . Highest-Rated Group 40 | . . 40 . . Highest-Rated Ally 16 | . . 16 . . Total Orders . | . . . . . Ally Attacks 11 | . . 11 . . Total Damage 144 | . . 144 . . Kills 4 | . . 4 . . Allies Corrupted . | . . . . . Allies Melted . | . . . . . Intel | -11 -10 -10 -10 -9 ------- Run | Scr Mat Min Exi Min Robot Analysis Total . | . . . . . Derelict Logs Recovered 2 | . . . . 2 Drone Launches . | . . . . . Drone Recoveries . | . . . . . Exploration | -11 -10 -10 -10 -9 ------------- Run | Scr Mat Min Exi Min Turns Passed 943 | 174 408 162 100 99 Spaces Moved 1122 | 124 264 260 265 209 Core 17 | 16 . . . 1 Treads . | . . . . . Legs 421 | 108 264 49 . . Wheels . | . . . . . Hover . | . . . . . Flight 684 | . . 211 265 208 Fastest Speed 37 | 50 120 37 37 37 Average Speed 68 | 110 120 52 37 38 Slowest Speed 120 | 120 120 120 37 120 Overloaded Moves . | . . . . . Propulsion Burnouts . | . . . . . Robots Hopped 7 | . . 1 . 6 Cave-ins Triggered . | . . . . . Exploration Rate (%) 36 | 5 33 31 62 52 Regions Visited 4 Branch Regions 3 Pre-discovered Areas . | . . . . . Known Exits Taken 1 | . 1 . . . Unknown Exits Taken 3 | 1 . 1 1 . Scrap Searched 2 | . . 1 . 1 Spaces Dug 1 | . . . . 1 Terrain Destroyed 1 | . . . . 1 Melee . | . . . . . Projectile 1 | . . . . 1 AOE . | . . . . . Terrain Rammed . | . . . . . Walls Destroyed . | . . . . . Machines Disabled . | . . . . . Actions | -11 -10 -10 -10 -9 --------- Run | Scr Mat Min Exi Min Total 1244 | 147 337 276 266 218 Wait 32 | . 15 6 . 11 Move 1105 | 123 263 257 264 198 Hop 6 | . . 1 . 5 Pick Up 19 | 8 6 5 . . Fast Attach 2 | . 1 . 1 . Attach 14 | 8 4 1 . 1 Detach . | . . . . . Swap 5 | . 1 3 . 1 Drop 8 | 1 4 2 1 . Fire 19 | 7 10 1 . 1 Melee . | . . . . . Ram 1 | . . . . 1 Kick 33 | . 33 . . . Crush . | . . . . . Escape Stasis . | . . . . . Rewire . | . . . . . Trap . | . . . . . Miscellaneous . | . . . . . Route ------- -11/Scrapyard -10/Materials -10/Mines -10/Exiles -9/Mines History --------- Turn | Location | Event 5 | -11/Scrapyard | Discovered new exit (range 16) 175 | -11/Scrapyard | Entered Materials 306 | -10/Materials | Build established: Mutant 379 | -10/Materials | Lost 3 parts (1p2w) 379 | -10/Materials | Core integrity fell below 50% 459 | -10/Materials | Identified exit to Mines 583 | -10/Materials | Entered Mines 632 | -10/Mines | Assisted by bots powering up and referring to "LRC-V3" 743 | -10/Mines | Deemed a non-threat by the Exiles lab entrance 743 | -10/Mines | Discovered new exit (range 5) 745 | -10/Mines | Entered Exiles 757 | -10/Exiles | Met 8R-AWN 766 | -10/Exiles | Met EX-HEX 782 | -10/Exiles | Met EX-BIN 788 | -10/Exiles | Aligned with FarCom system 789 | -10/Exiles | Given EX-Vault access code 797 | -10/Exiles | Opened EX-Vault 807 | -10/Exiles | Warned to stay clear of 0b10 Research branches 817 | -10/Exiles | Met EX-DEC 842 | -10/Exiles | Discovered new exit (range 10) 845 | -10/Exiles | Entered Mines 858 | -9/Mines | Learned Materials garrison access intel 879 | -9/Mines | Learned 2 Materials zone layouts 895 | -9/Mines | Assembled infested the area 933 | -9/Mines | Core integrity fell below 20% 944 | -9/Mines | Destroyed by as-47371 with Assembled Blade Last Messages --------------- 00850_ Acquired 10 matter. 00858_ Acquired derelict log, extracted data. Data stored: Materials garrison access intel. 00875_ T-07 Excavator is excavating. 00879_ Acquired derelict log, extracted data. Data stored: Materials zone layouts (x2). 00885_ A derelict is hurriedly installing traps. 00887_ FX-EZ0(g): "Hehe, this'll put a wrench in their mining defense operations..." 00887_ FX-EZ0(g) slips into the shadows. 00895_ ALERT: Infestation in the mines, dispatching Demolisher response squad. 00920_ Flight Unit destroyed. 00921_ Slammed into as-82594. 00922_ Mining Laser destroyed. 00923_ Sensor Array destroyed. 00924_ Flight Unit destroyed. 00924_ Lgt. Ion Engine destroyed. 00942_ Visual Processing Unit destroyed. 00942_ Knocked back. 00943_ Flight Unit destroyed. Map ----- +----------------------------------------------------+ | | | | | | | | | | | | | | | | | | | | | | | | | | | | | | | | | | | | | | | | | ?????????????????????????????????????????????????? | | ?????????????????????????????????????????????????? | | ??????????????????????######????####?????????????? | | ?????????????????????## ##??## ##????????????? | | ????????????????????## #### #????????????? | | ????????????????????# @a a #????????????? | | ???????????????????## a##a ##????????????? | | ???????????????????# #### ###?????????????? | | ???????????????????# aaa##?######???????????????? | | ???????????????????## aa #??????????????????????? | | ????????????????????#aa a #?????? ##?????????????? | | ???????????????????##a ##### #?????????????? | | ????????#?????????## #?????????????? | | ????????# ????##### #?????????????? | | ????????# #### #?????????????? | | ????????# #????????????? | | ??????### * ???????????? | | ?????## ##### ## =%!!???????????? | | ?????# ### ###### !% % !????????????? | | ?????# ##???# #????????????? | | ??????# ##??? #?????????????? | | ??????## #???? #?????????????? | | ???????#### " #?????????????? | | ??????????## ### ### #??????????????? | | ??????###### ### #?## ## ???????????????? | | ?????## ## #???# ##??? ?????????????????? | | #??### ###### #???? #??????????????????????? | | #### #?????# #????# ##??????????????????????? | | ## #????### #?????###???????????????????????? | | ##???# #???????????????????????????????? | +----------------------------------------------------+ Best States ------------- Heat Dissipation 25 Energy Generation 10 Energy Capacity 250 Matter Stores 300 Matter Capacity 300 Sight Range 18 Robot Scan Range 10 Terrain Scan Range 16 Terrain Scan Density 60 Resistance: KI 20 Resistance: TH 20 Resistance: EX 20 Resistance: EM 20 Resistance: I 20 Resistance: S 20 Resistance: P 20 Evasion (%) 62 Offensive Hacking 10 Item Schematics ----------------- None Robot Schematics ------------------ None Fabricated ------------ Nothing Alien Tech Used ----------------- None Achievements -------------- None Challenges ------------ None Game ------ Seed GodHackingElectrolaser Manual? 0 Play Time 00:14:54 Cumulative 119.6 hours Start 2020.10.20 @ 15:47:42 End 2020.10.20 @ 16:00:46 Sessions 1 Manual Loads 0 Difficulty Adventurer Special Mode None Game No. 148 Rogue 102 Adventurer 3 Explorer 43 Win Type - Total 2 Types 1/0/1/0/0/0/0/0/0 Lore% 27 Gallery% 58 Achievement% 48 Wizard Run 0 Options --------- ASCII 0 Keyboard 0 Movement Mouse Keybinds 0 Fullscreen 1 Font 12/Smallcaps Map View 83x54 Tactical HUD 1 Map Filters NONE Filters NONE Steam 1 RUN: 45d582c9-712a-48a2-a769-4e5b20ff0baf